bitfinex/quotes_SOLUSD_20250624
["timestamp","ask_amount","ask_price","bid_price","bid_amount"]
[1750767323085,5.61211553,144.87,144.84,18.64964886]
[1750767324184,10.77827949,144.88,144.85,6.90369347]
[1750767324390,5.61211553,144.88,144.85,6.90369347]
[1750767325582,178.21211553,144.89,144.86,18.64964886]
[1750767325759,5.61211553,144.9,144.86,18.64964886]
[1750767325966,59.77211553,144.91,144.86,24.26176439]
[1750767326178,5.16589103,144.9,144.87,24.15959134]
[1750767326377,5.61211553,144.91,144.87,24.15959134]
[1750767327356,5.61211553,144.9,144.87,24.15959134]
[1750767328555,54.16,144.92,144.87,24.15959134]
[1750767328556,5.61211553,144.89,144.87,24.15959134]
[1750767329358,5.61211553,144.9,144.87,24.15959134]
[1750767329566,5.61211553,144.91,144.88,18.64964886]
[1750767329864,5.61211553,144.91,144.89,6.02]
[1750767330566,5.61211553,144.91,144.9,6.90131124]
[1750767333110,26.0,144.92,144.9,6.90131124]
[1750767333315,5.61211553,144.91,144.9,6.90131124]
[1750767334286,31.61211553,144.92,144.9,6.90131124]
[1750767337017,26.0,144.92,144.9,6.90131124]
[1750767337318,31.61211553,144.92,144.9,6.90131124]
[1750767338987,26.0,144.92,144.9,6.90131124]
[1750767339199,31.61211553,144.92,144.9,6.90131124]
[1750767339707,5.61211553,144.91,144.9,6.90131124]
[1750767340714,5.61211553,144.91,144.89,6.02]
[1750767340942,61.35101553,144.9,144.89,6.02]
[1750767341097,26.0,144.87,144.84,6.02]
[1750767341290,5.61211553,144.85,144.84,6.02]
[1750767344110,33.75211553,144.85,144.84,6.02]
[1750767344290,59.75211553,144.85,144.84,6.02]
[1750767351629,59.75211553,144.85,144.84,12.92417011]
[1750767351806,31.61211553,144.85,144.84,12.92417011]
[1750767352631,200.74,144.87,144.84,12.92417011]
[1750767352819,5.61211553,144.86,144.84,12.92417011]
[1750767353726,5.61211553,144.85,144.84,12.92417011]
[1750767355453,5.61211553,144.86,144.84,12.92417011]
[1750767355619,178.21211553,144.87,144.84,12.92417011]
[1750767355823,54.14,144.89,144.84,30.1845954]
[1750767356121,31.61211553,144.89,144.85,18.64964886]
[1750767356347,5.61211553,144.9,144.87,18.64964886]
[1750767356515,5.61211553,144.91,144.87,24.26176439]
[1750767357539,5.61211553,144.91,144.88,24.15792379]
[1750767358941,31.61211553,144.92,144.89,18.64964886]
[1750767359149,26.0,144.92,144.9,6.02]
[1750767359572,5.61211553,144.95,144.92,24.15125585]
[1750767360028,31.61211553,144.95,144.92,24.15125585]
[1750767360431,5.61211553,144.94,144.92,24.15125585]
[1750767360830,5.61211553,144.93,144.91,6.90072831]
[1750767361053,31.61211553,144.92,144.91,6.90072831]
[1750767361820,31.61211553,144.92,144.88,6.90226394]
[1750767362022,5.61211553,144.89,144.88,12.92226394]
[1750767362718,5.61211553,144.89,144.88,6.02]
[1750767363049,59.75211553,144.89,144.88,6.02]
[1750767364053,59.75211553,144.89,144.85,12.92352138]
[1750767364233,5.61211553,144.86,144.85,12.92352138]
[1750767368532,5.61211553,144.86,144.85,6.02]
[1750767368729,5.61211553,144.86,144.85,12.92369347]
[1750767369125,5.61211553,144.86,144.85,6.02]
[1750767370234,26.0,144.86,144.85,6.02]
[1750767370434,31.61211553,144.86,144.85,12.92369347]
[1750767372327,31.61211553,144.86,144.85,6.02]
[1750767372533,26.0,144.82,144.77,57.88895847]
[1750767372729,5.61211553,144.78,144.77,57.88895847]
[1750767372954,33.85211553,144.78,144.77,64.79646693]
[1750767373151,33.85211553,144.78,144.77,57.88895847]
[1750767379383,5.61211553,144.78,144.77,64.79646693]
[1750767379559,33.83211553,144.78,144.77,64.79646693]
[1750767379874,33.83211553,144.78,144.77,57.88895847]
[1750767382271,33.83211553,144.78,144.77,64.79646693]
[1750767385188,33.83211553,144.78,144.77,57.88895847]
[1750767389586,33.83211553,144.78,144.77,64.79646693]
[1750767389758,146.6,144.82,144.77,83.44611579]
[1750767390078,5.61211553,144.81,144.78,24.68964886]
[1750767390277,26.0,144.83,144.78,24.68964886]
[1750767390486,5.61211553,144.8,144.78,24.68964886]
[1750767390669,5.61211553,144.79,144.78,12.94681778]
[1750767392770,28.22,144.81,144.78,31.59646664]
[1750767392958,5.61211553,144.79,144.78,31.59646664]
[1750767393280,5.61211553,144.8,144.78,31.59646664]
[1750767394072,5.61211553,144.79,144.78,31.59646664]
[1750767395785,5.61211553,144.8,144.78,31.59646664]
[1750767395990,5.61211553,144.8,144.79,18.64964886]
[1750767397060,5.61211553,144.8,144.79,25.55620318]
[1750767398385,5.61211553,144.81,144.79,42.82258898]
[1750767398592,5.61211553,144.84,144.79,48.43470451]
[1750767398902,54.2,144.85,144.79,48.43470451]
[1750767398903,5.61211553,144.83,144.79,42.82258898]
[1750767399680,5.61211553,144.82,144.79,42.82258898]
[1750767399885,5.61211553,144.82,144.79,25.55620318]
[1750767400591,5.61211553,144.81,144.79,25.55620318]
[1750767401294,5.61211553,144.82,144.79,25.55620318]
[1750767401890,5.61211553,144.81,144.79,25.55620318]
[1750767404006,5.61211553,144.8,144.79,18.64964886]
[1750767405894,5.61211553,144.8,144.79,25.55620318]
[1750767410403,5.61211553,144.86,144.79,50.06050451]
[1750767410710,5.61211553,144.85,144.81,18.64964886]
[1750767411690,5.61211553,144.84,144.83,18.64964886]
[1750767411889,5.61211553,144.84,144.83,24.68964886]
[1750767412793,5.61211553,144.85,144.83,24.68964886]
[1750767413518,5.61211553,144.9,144.85,18.64964886]
[1750767413805,5.61211553,144.9,144.88,18.64964886]
[1750767414013,5.61211553,144.9,144.89,6.04]
[1750767417117,11.22423106,144.9,144.85,6.90351942]
[1750767417431,5.61211553,144.86,144.85,6.90351942]
[1750767418218,26.0,144.83,144.8,6.04]
[1750767418408,5.61211553,144.81,144.8,24.68964886]
[1750767418993,5.61211553,144.82,144.81,18.64964886]
[1750767419197,5.61211553,144.82,144.8,6.04]
[1750767419420,5.61211553,144.81,144.8,6.04]
[1750767420326,5.61211553,144.81,144.8,12.94607734]
[1750767425656,5.61211553,144.81,144.8,6.04]
[1750767425927,39.44423106,144.81,144.8,6.04]
[1750767426107,28.22,144.81,144.8,6.04]
[1750767426431,33.83211553,144.81,144.8,12.94607734]
[1750767426806,5.61211553,144.81,144.8,12.94607734]
[1750767427643,5.61211553,144.81,144.8,31.5957262]
[1750767428124,31.61211553,144.82,144.8,31.5957262]
[1750767428318,5.61211553,144.81,144.8,31.5957262]
[1750767430533,5.61211553,144.81,144.8,12.94607734]
[1750767434119,5.61211553,144.81,144.8,6.04]
[1750767434523,33.81211553,144.81,144.8,6.04]
[1750767436425,44.58175963,144.81,144.8,6.04]
[1750767436846,51.48736007,144.81,144.8,6.04]
[1750767437029,51.48736007,144.81,144.77,64.7961918]
[1750767437030,199.66796007,144.81,144.77,57.88895847]
[1750767437345,5.61211553,144.78,144.77,57.88895847]
[1750767437642,33.83211553,144.78,144.77,57.88895847]
[1750767439651,33.83211553,144.78,144.75,12.96840107]
[1750767439830,31.61211553,144.76,144.75,12.96840107]
[1750767440033,59.81211553,144.76,144.75,12.96840107]
[1750767440552,59.81211553,144.76,144.75,6.06]
[1750767444563,1.5098,144.75,144.69,6.06]
[1750767444756,5.61211553,144.7,144.69,6.06]
[1750767445049,33.83211553,144.7,144.69,6.06]
[1750767445549,26.0,144.67,144.65,6.06]
[1750767445727,5.61211553,144.66,144.65,6.06]
[1750767445926,5.61211553,144.66,144.65,12.97323885]
[1750767447219,5.61211553,144.66,144.65,6.06]
[1750767447655,5.61211553,144.66,144.63,73.94932132]
[1750767447954,5.61211553,144.64,144.63,67.03554303]
[1750767448261,37.22423106,144.64,144.63,67.03554303]
[1750767448424,37.22423106,144.64,144.61,6.91515109]
[1750767448746,5.61211553,144.62,144.61,6.91515109]
[1750767449539,28.22,144.63,144.61,6.91515109]
[1750767449740,5.61211553,144.62,144.61,6.91515109]
[1750767451942,5.61211553,144.62,144.6,12.9754297]
[1750767452253,59.85211553,144.61,144.6,12.9754297]
[1750767455451,59.85211553,144.61,144.6,6.06]
[1750767455769,206.45211553,144.61,144.54,6.06]
[1750767455932,26.0,144.58,144.55,18.64964886]
[1750767456132,28.24,144.6,144.57,18.64964886]
[1750767456331,5.61211553,144.58,144.56,24.2114001]
[1750767456564,5.61211553,144.57,144.56,6.91754288]
[1750767458143,5.61211553,144.57,144.55,6.91802144]
[1750767458331,5.61211553,144.56,144.55,6.91802144]
[1750767459752,33.87211553,144.56,144.55,6.91802144]
[1750767459948,33.87211553,144.56,144.54,12.97833537]
[1750767460132,5.61211553,144.55,144.54,12.97833537]
[1750767460638,5.61211553,144.55,144.54,6.06]
[1750767461747,26.0,144.52,144.5,6.92028994]
[1750767461949,33.89211553,144.51,144.5,6.92028994]
[1750767462541,33.89211553,144.51,144.49,6.06]
[1750767462741,5.61211553,144.5,144.49,6.06]
[1750767462942,5.61211553,144.5,144.49,12.9807667]
[1750767463461,5.61211553,144.5,144.49,6.06]
[1750767463640,26.0,144.47,144.44,6.06]
[1750767463835,28.3,144.46,144.44,6.06]
[1750767464151,5.61211553,144.45,144.44,6.06]
[1750767464835,5.61211553,144.45,144.44,12.98328994]
[1750767465041,26.0,144.47,144.45,18.64964886]
[1750767465542,31.61211553,144.47,144.46,6.92233144]
[1750767466263,26.0,144.47,144.46,6.92233144]
[1750767466457,31.61211553,144.47,144.46,6.92233144]
[1750767466763,34.05211553,144.49,144.46,24.22816004]
[1750767466968,34.05211553,144.49,144.47,18.64964886]
[1750767467142,5.61211553,144.48,144.47,18.64964886]
[1750767467340,5.61211553,144.48,144.46,6.92233144]
[1750767467550,28.44,144.49,144.44,6.06]
[1750767467551,28.44,144.49,144.45,6.92281066]
[1750767467749,5.61211553,144.47,144.45,6.92281066]
[1750767467943,5.61211553,144.46,144.45,6.92281066]
[1750767468962,31.61211553,144.46,144.45,6.92281066]
[1750767469937,31.61211553,144.46,144.44,6.06]
[1750767470131,54.5,144.46,144.44,12.98322836]
[1750767470436,5.61211553,144.45,144.44,12.98322836]
[1750767473346,5.61211553,144.45,144.41,24.70964886]
[1750767473544,28.5,144.44,144.42,6.92424871]
[1750767473735,5.61211553,144.43,144.42,6.92424871]
[1750767474153,5.61211553,144.43,144.41,6.06]
[1750767474354,5.61211553,144.42,144.41,12.98436171]
[1750767474674,34.11211553,144.42,144.41,6.06]
[1750767474969,5.61211553,144.46,144.42,18.64964886]
[1750767475173,5.61211553,144.43,144.41,12.9847282]
[1750767475556,5.61211553,144.44,144.41,12.9847282]
[1750767476070,31.61211553,144.45,144.42,18.64964886]
[1750767476460,34.13211553,144.46,144.42,18.64964886]
[1750767477163,28.52,144.46,144.42,18.64964886]
[1750767477352,5.61211553,144.45,144.42,18.64964886]
[1750767478151,5.61211553,144.45,144.43,6.9237693]
[1750767479262,34.13211553,144.46,144.43,6.9237693]
[1750767479468,34.13211553,144.46,144.43,24.23319255]
[1750767479858,28.52,144.46,144.43,24.23319255]
[1750767480062,34.13211553,144.46,144.43,24.23319255]
[1750767480871,28.52,144.46,144.43,24.23319255]
[1750767481056,34.13211553,144.46,144.43,24.23319255]
[1750767481249,5.61211553,144.45,144.43,6.9237693]
[1750767483367,28.52,144.46,144.43,6.9237693]
[1750767483564,5.61211553,144.44,144.43,25.57341816]
[1750767483764,5.61211553,144.44,144.42,6.92409574]
[1750767483951,31.61211553,144.43,144.41,12.9845687]
[1750767484291,5.61211553,144.43,144.41,12.9845687]
[1750767484977,54.52,144.46,144.42,18.64964886]
[1750767485159,54.52,144.46,144.42,24.26176439]
[1750767485469,26.0,144.46,144.42,24.26176439]
[1750767485667,31.61211553,144.46,144.42,18.64964886]
[1750767485865,5.61211553,144.45,144.42,18.64964886]
[1750767486063,26.0,144.46,144.42,18.64964886]
[1750767486269,5.61211553,144.44,144.43,6.9237693]
[1750767486889,31.61211553,144.46,144.43,6.9237693]
[1750767487187,26.0,144.46,144.44,18.64964886]
[1750767487359,31.61211553,144.46,144.44,18.64964886]
[1750767488072,34.19211553,144.48,144.44,24.26176439]
[1750767488254,34.19211553,144.48,144.45,6.92281066]
[1750767488884,5.61211553,144.47,144.45,6.92281066]
[1750767489777,5.61211553,144.49,144.46,18.64964886]
[1750767489977,5.61211553,144.5,144.47,6.22]
[1750767490185,5.61211553,144.51,144.48,18.64964886]
[1750767490356,60.21211553,144.52,144.49,6.92089417]
[1750767490688,31.61211553,144.52,144.49,6.92089417]
[1750767491457,5.61211553,144.51,144.49,6.92089417]
[1750767491685,26.0,144.52,144.49,6.92089417]
[1750767491891,5.61211553,144.51,144.49,6.92089417]
[1750767492067,26.0,144.52,144.49,6.92089417]
[1750767492387,5.61211553,144.51,144.49,6.92089417]
[1750767495080,5.61211553,144.5,144.49,6.92089417]
[1750767500189,5.61211553,144.51,144.49,6.92089417]
[1750767500392,34.15211553,144.53,144.5,18.64964886]
[1750767500690,5.61211553,144.51,144.49,6.92089417]
[1750767500893,5.61211553,144.5,144.49,6.92089417]
[1750767503409,5.61211553,144.5,144.48,25.57083342]
[1750767503701,5.61211553,144.49,144.48,25.57083342]
[1750767504004,5.61211553,144.5,144.49,0.14216157]
[1750767504502,5.61211553,144.5,144.49,7.06305574]
[1750767507085,5.61211553,144.5,144.48,7.06320118]
[1750767507272,5.61211553,144.49,144.48,7.06320118]
[1750767509504,5.61211553,144.5,144.48,7.06320118]
[1750767511180,5.61211553,144.49,144.48,7.06320118]
[1750767511380,26.0,144.51,144.48,7.06320118]
[1750767511603,5.61211553,144.49,144.48,7.06320118]
[1750767513221,5.61211553,144.5,144.48,7.06320118]
[1750767515811,13.69146292,144.59,144.5,0.14216157]
[1750767515992,8.5916799,144.59,144.56,0.14216157]
[1750767516312,6.30165992,144.57,144.56,30.58392596]
[1750767516805,8.5916799,144.59,144.56,24.97181043]
[1750767517603,152.21211553,144.6,144.58,0.14216157]
[1750767517820,5.61211553,144.6,144.58,0.14216157]
[1750767518179,5.61211553,144.59,144.58,0.14216157]
[1750767519704,34.57211553,144.6,144.58,0.14216157]
[1750767520013,5.61211553,144.59,144.58,0.14216157]
[1750767520190,5.61211553,144.59,144.58,7.05874754]
[1750767521117,12.52823823,144.59,144.51,17.29874033]
[1750767521307,12.52823823,144.59,144.34,6.18]
[1750767521308,26.0,144.44,144.34,6.18]
[1750767521614,7.8306,144.47,144.29,16.93048721]
[1750767521615,28.92,144.43,144.29,16.93048721]
[1750767521802,5.61211553,144.33,144.28,5.45628452]
[1750767522004,5.61211553,144.32,144.28,5.45628452]
[1750767522311,29.4,144.36,144.28,21.82185272]
[1750767522513,9.43472201,144.35,144.3,9.43472201]
[1750767522696,6.2751,144.4,144.28,34.25826509]
[1750767522896,9.43472201,144.39,144.33,9.43472201]
[1750767523215,9.43472201,144.39,144.34,13.46808646]
[1750767523419,9.43472201,144.39,144.34,22.90280847]
[1750767523619,35.43472201,144.4,144.36,0.14216157]
[1750767524719,26.0,144.4,144.36,0.14216157]
[1750767524892,35.43472201,144.4,144.36,0.14216157]
[1750767525095,26.0,144.4,144.38,0.14216157]
[1750767525413,26.0,144.4,144.39,7.06784894]
[1750767525615,38.91472201,144.42,144.4,0.14216157]
[1750767526298,9.43472201,144.43,144.4,6.68216157]
[1750767526493,9.43472201,144.44,144.4,6.68216157]
[1750767526797,35.43472201,144.44,144.4,6.68216157]
[1750767527112,9.43472201,144.43,144.4,6.68216157]
[1750767527317,9.43472201,144.43,144.42,0.14216157]
[1750767528509,35.43472201,144.43,144.42,0.14216157]
[1750767528706,26.0,144.41,144.4,6.54]
[1750767528903,64.95472201,144.41,144.4,6.54]
[1750767529208,64.95472201,144.41,144.4,6.68216157]
[1750767529608,64.95472201,144.41,144.4,6.54]
[1750767530425,64.95472201,144.41,144.4,6.68216157]
[1750767533524,64.95472201,144.41,144.4,0.14216157]
[1750767534795,64.95472201,144.41,144.4,7.06736932]
[1750767534995,68.84472201,144.41,144.4,7.06736932]
[1750767535804,42.84472201,144.41,144.4,7.06736932]
[1750767536906,42.84472201,144.41,144.4,6.70636932]
[1750767537104,42.84472201,144.41,144.37,17.31637572]
[1750767537305,42.84472201,144.41,144.37,24.24302253]
[1750767537509,13.32472201,144.41,144.37,24.24302253]
[1750767538017,3.89,144.41,144.37,24.24302253]
[1750767538207,13.32472201,144.41,144.37,24.24302253]
[1750767538602,3.89,144.41,144.38,18.64964886]
[1750767538803,3.89,144.41,144.38,28.08437087]
[1750767539012,3.89,144.41,144.39,0.14216157]
[1750767540010,3.89,144.41,144.4,7.06736932]
[1750767542425,13.32472201,144.41,144.4,7.06736932]
[1750767544126,3.89,144.41,144.4,7.06736932]
[1750767544427,13.32472201,144.41,144.4,7.06736932]
[1750767551444,3.89,144.41,144.4,7.06736932]
[1750767551634,13.32472201,144.41,144.4,7.06736932]
[1750767551837,3.89,144.41,144.4,7.06736932]
[1750767552037,13.32472201,144.41,144.4,7.06736932]
[1750767552235,3.89,144.41,144.4,7.06736932]
[1750767553027,13.32472201,144.41,144.4,7.06736932]
[1750767554332,9.5420071,144.41,144.4,7.06736932]
[1750767560326,9.5420071,144.41,144.4,0.14216157]
[1750767561425,9.5420071,144.41,144.4,7.06736932]
[1750767563057,9.5420071,144.41,144.4,0.14216157]
[1750767563247,38.7420071,144.41,144.4,0.14216157]
[1750767563745,38.7420071,144.41,144.27,10.0]
[1750767563939,38.7420071,144.41,144.33,18.64964886]
[1750767563940,5.6520071,144.35,144.33,18.64964886]
[1750767564536,5.6520071,144.35,144.34,0.14216157]
[1750767564941,5.6520071,144.35,144.34,25.71989689]
[1750767565137,5.6520071,144.35,144.34,6.92808646]
[1750767565538,5.6520071,144.35,144.33,6.92836964]
[1750767565743,34.33744698,144.38,144.34,0.14216157]
[1750767565930,5.6520071,144.35,144.34,0.14216157]
[1750767566659,10.82253993,144.35,144.32,13.56894701]
[1750767566833,36.10621833,144.38,144.33,0.14216157]
[1750767567028,5.17052963,144.37,144.33,0.14216157]
[1750767567233,5.17052963,144.36,144.33,7.07066382]
[1750767567446,5.17052963,144.35,144.33,7.07066382]
[1750767567667,26.0,144.36,144.33,7.07066382]
[1750767567962,5.17464029,144.35,144.33,6.92850225]
[1750767568167,5.6520071,144.34,144.33,6.92850225]
[1750767568459,5.6520071,144.34,144.33,7.07066382]
[1750767569644,5.6520071,144.34,144.33,0.14216157]
[1750767570134,5.6520071,144.34,144.33,7.07072804]
[1750767571151,5.6520071,144.35,144.34,0.14216157]
[1750767572747,5.6520071,144.35,144.34,7.07024803]
[1750767579053,201.78,144.38,144.34,24.39046418]
[1750767579254,5.6520071,144.35,144.34,24.39046418]
[1750767580073,5.6520071,144.35,144.34,7.07024803]
[1750767582891,201.78,144.38,144.34,43.04011304]
[1750767583076,5.6520071,144.36,144.34,43.04011304]
[1750767583666,5.6520071,144.35,144.34,43.04011304]
[1750767585067,5.6520071,144.36,144.34,43.04011304]
[1750767585570,5.6520071,144.37,144.34,43.04011304]
[1750767585977,5.6520071,144.37,144.36,0.14216157]
[1750767586659,5.6520071,144.38,144.36,0.14216157]
[1750767586853,5.6520071,144.39,144.36,0.14216157]
[1750767587055,5.6520071,144.39,144.38,0.14216157]
[1750767587357,5.6520071,144.39,144.38,6.64216157]
[1750767589074,3.89,144.41,144.4,0.14216157]
[1750767589380,9.5420071,144.41,144.4,0.14216157]
[1750767590684,9.5420071,144.41,144.4,7.06736932]
[1750767593979,9.5420071,144.41,144.39,7.06774058]
[1750767594283,5.6520071,144.4,144.39,0.14216157]
[1750767595482,34.5920071,144.4,144.39,0.14216157]
[1750767600791,34.5920071,144.4,144.39,7.06784894]
[1750767602696,45.41442257,144.4,144.39,0.14216157]
[1750767603064,45.41442257,144.4,144.38,6.5]
[1750767603283,5.6520071,144.39,144.38,6.5]
[1750767603483,5.6520071,144.39,144.38,6.64216157]
[1750767605589,10.82556727,144.39,144.38,6.64216157]
[1750767610106,43.75125464,144.39,144.33,6.5]
[1750767610283,5.6520071,144.34,144.33,6.5]
[1750767610806,5.6520071,144.34,144.33,6.64216157]
[1750767611015,5.6520071,144.34,144.33,6.5]
[1750767611216,34.01644269,144.35,144.34,0.14216157]
[1750767611400,5.6520071,144.35,144.34,0.14216157]
[1750767613188,5.6520071,144.36,144.35,7.06976808]
[1750767613593,5.6520071,144.37,144.36,0.14216157]
[1750767615415,5.6520071,144.37,144.36,7.06928819]
[1750767622298,5.6520071,144.37,144.34,6.4]
[1750767622496,5.6520071,144.35,144.34,6.4]
[1750767623022,5.6520071,144.35,144.34,6.54216157]
[1750767623312,5.6520071,144.35,144.34,6.4]
[1750767623617,5.6520071,144.35,144.34,13.47024803]
[1750767623918,5.6520071,144.35,144.34,6.4]
[1750767624613,10.8314761,144.35,144.34,6.54216157]
[1750767624990,5.179469,144.35,144.34,13.47024803]
[1750767625187,10.8314761,144.35,144.34,13.47024803]
[1750767625418,10.8314761,144.35,144.34,6.54216157]
[1750767626016,10.8314761,144.35,144.34,13.47024803]
[1750767626419,10.8314761,144.35,144.34,6.54216157]
[1750767630100,5.6520071,144.35,144.34,6.54216157]
[1750767632121,5.6520071,144.35,144.34,13.47024803]
[1750767632816,10.82755,144.35,144.34,13.47024803]
[1750767633227,28.78,144.36,144.35,0.14216157]
[1750767633519,39.60721065,144.36,144.35,0.14216157]
[1750767634304,39.60721065,144.36,144.35,7.06976808]
[1750767634621,39.6074448,144.36,144.35,7.06976808]
[1750767635828,34.4320071,144.36,144.35,7.06976808]
[1750767636420,34.4320071,144.36,144.35,0.14216157]
[1750767636619,34.4320071,144.36,144.35,7.06976808]
[1750767637324,39.60807723,144.36,144.35,0.14216157]
[1750767641426,39.60807723,144.36,144.35,7.06976808]
[1750767641925,39.60807723,144.36,144.35,0.14216157]
[1750767642099,39.60807723,144.36,144.35,7.06976808]
[1750767643225,39.60807723,144.36,144.29,18.64964886]
[1750767643226,26.0,144.33,144.29,6.3]
[1750767643424,5.6520071,144.3,144.29,6.3]
[1750767643726,34.3720071,144.3,144.29,6.3]
[1750767644533,34.3720071,144.3,144.29,6.44216157]
[1750767645000,28.72,144.32,144.3,0.14216157]
[1750767645201,5.6520071,144.31,144.3,0.14216157]
[1750767646828,5.6520071,144.31,144.3,7.0721685]
[1750767647523,5.6520071,144.31,144.24,50.5520071]
[1750767647524,33.7517,144.26,144.16,1.448112]
[1750767647704,5.6520071,144.24,144.16,8.38478002]
[1750767647909,5.6520071,144.19,144.16,25.72662241]
[1750767648206,5.6520071,144.19,144.16,8.38478002]
[1750767648408,5.6520071,144.19,144.17,18.79181043]
[1750767648618,5.6520071,144.19,144.17,25.09181043]
[1750767648927,5.6520071,144.19,144.18,6.93577472]
[1750767649130,5.6520071,144.19,144.18,25.58542358]
[1750767650329,5.6520071,144.19,144.18,25.72758515]
[1750767651601,5.6520071,144.19,144.18,7.07793629]
[1750767652206,55.06,144.23,144.19,0.14216157]
[1750767652411,5.6520071,144.2,144.19,0.14216157]
[1750767652815,29.04,144.24,144.19,18.79181043]
[1750767653009,26.0,144.25,144.2,7.07697433]
[1750767653217,55.06,144.25,144.21,0.14216157]
[1750767654125,55.06,144.25,144.21,6.69271594]
[1750767654332,5.6520071,144.22,144.21,6.69271594]
[1750767656130,5.6520071,144.22,144.2,0.14216157]
[1750767656328,5.6520071,144.21,144.2,0.14216157]
[1750767658108,5.6520071,144.21,144.2,25.72662319]
[1750767658515,5.6520071,144.21,144.2,7.07697433]
[1750767662032,55.06,144.25,144.2,7.07697433]
[1750767662239,5.6520071,144.21,144.2,7.07697433]
[1750767663239,5.6520071,144.21,144.2,25.72662319]
[1750767668526,5.6520071,144.21,144.2,7.07697433]
[1750767679529,5.6520071,144.24,144.2,25.72662319]
[1750767679734,26.0,144.25,144.22,0.14216157]
[1750767679948,5.6520071,144.23,144.22,0.14216157]
[1750767680331,5.6520071,144.23,144.22,25.72566149]
[1750767681340,183.2317,144.26,144.24,0.14216157]
[1750767681341,146.6,144.26,144.24,0.14216157]
[1750767681653,146.6,144.32,144.24,0.14216157]
[1750767681827,5.6520071,144.31,144.26,24.44381753]
[1750767682256,5.6520071,144.31,144.28,0.14216157]
[1750767682626,5.6520071,144.31,144.3,0.14216157]
[1750767683576,5.6520071,144.32,144.3,18.79181043]
[1750767684433,28.94,144.35,144.31,7.07168828]
[1750767684656,5.6520071,144.32,144.31,7.07168828]
[1750767684861,5.6520071,144.33,144.32,0.14216157]
[1750767685063,5.6520071,144.34,144.32,0.14216157]
[1750767686470,5.6520071,144.34,144.33,7.07072804]
[1750767688161,5.6520071,144.34,144.33,0.14216157]
[1750767689854,5.6520071,144.34,144.33,7.07072804]
[1750767690044,5.6520071,144.34,144.29,6.42]
[1750767690370,5.6520071,144.32,144.29,30.67670524]
[1750767690671,5.6520071,144.31,144.3,7.0721685]
[1750767691186,5.6520071,144.31,144.3,25.72181736]
[1750767691839,28.88,144.35,144.3,25.72181736]
[1750767692259,5.6520071,144.31,144.3,7.0721685]
[1750767693480,5.6520071,144.31,144.25,18.64964886]
[1750767693647,5.6520071,144.26,144.25,18.64964886]
[1750767693847,5.6520071,144.26,144.25,18.79181043]
[1750767694369,5.6520071,144.27,144.26,0.14216157]
[1750767695675,5.6520071,144.27,144.26,25.72373889]
[1750767695970,28.9,144.31,144.28,0.14216157]
[1750767696142,5.6520071,144.29,144.28,0.14216157]
[1750767696540,26.0,144.33,144.28,0.14216157]
[1750767696541,28.88,144.33,144.28,0.14216157]
[1750767696746,5.6520071,144.31,144.28,0.14216157]
[1750767696955,172.6,144.35,144.28,0.14216157]
[1750767697146,5.6520071,144.32,144.28,0.14216157]
[1750767697349,201.5,144.35,144.28,0.14216157]
[1750767697350,5.6520071,144.31,144.28,0.14216157]
[1750767697876,201.5,144.35,144.3,0.14216157]
[1750767698040,201.5,144.35,144.3,18.79181043]
[1750767698456,172.6,144.35,144.3,25.21181043]
[1750767698686,201.5,144.35,144.3,25.21181043]
[1750767698892,175.5,144.35,144.3,25.21181043]
[1750767699187,5.6520071,144.33,144.3,25.21181043]
[1750767700361,5.6520071,144.33,144.32,0.14216157]
[1750767701478,5.6520071,144.34,144.32,18.79181043]
[1750767701891,26.0,144.37,144.32,18.79181043]
[1750767702185,5.6520071,144.35,144.32,18.79181043]
[1750767702363,5.6520071,144.35,144.34,0.14216157]
[1750767703358,5.6520071,144.35,144.34,18.79181043]
[1750767703570,5.6520071,144.36,144.34,18.79181043]
[1750767704090,5.6520071,144.35,144.34,18.79181043]
[1750767704461,5.6520071,144.35,144.34,7.07024803]
[1750767704881,5.6520071,144.35,144.32,6.92904656]
[1750767705190,5.6520071,144.33,144.32,7.07120813]
[1750767706268,5.6520071,144.33,144.3,6.42]
[1750767706455,5.6520071,144.31,144.3,6.42]
[1750767706662,28.86,144.34,144.31,0.14216157]
[1750767706861,5.6520071,144.32,144.31,0.14216157]
[1750767708605,5.6520071,144.32,144.31,7.07168828]
[1750767708772,26.0,144.37,144.31,25.72133714]
[1750767708980,5.6520071,144.34,144.33,0.14216157]
[1750767710696,5.6520071,144.34,144.33,25.7203769]
[1750767712208,5.6520071,144.35,144.33,43.04179309]
[1750767712407,5.6520071,144.36,144.34,18.79181043]
[1750767712704,5.6520071,144.36,144.35,0.14216157]
[1750767713908,5.6520071,144.36,144.35,25.71941694]